bitfinex-derivatives/quotes_BTCF0:USTF0_20230701
["timestamp","ask_amount","ask_price","bid_price","bid_amount"]
[1688184955483,1.10633145,30386.0,30385.0,0.0192903]
[1688184955888,0.764982,30386.0,30385.0,0.05727299]
[1688184956078,1.119982,30386.0,30385.0,0.0390433]
[1688184956496,1.119982,30386.0,30385.0,0.05789275]
[1688184957491,1.119982,30386.0,30385.0,0.0390433]
[1688184957882,1.119982,30386.0,30385.0,0.05789275]
[1688184958384,1.119982,30386.0,30385.0,0.0390433]
[1688184958584,1.119982,30386.0,30385.0,0.05789275]
[1688184960093,0.374752,30386.0,30385.0,0.07612244]
[1688184960293,0.374752,30386.0,30385.0,0.43462244]
[1688184960584,0.355,30386.0,30385.0,0.43462244]
[1688184960793,0.355,30386.0,30385.0,0.48901795]
[1688184961186,0.374751,30386.0,30385.0,0.48901795]
[1688184961690,0.374751,30386.0,30385.0,0.44527589]
[1688184962489,0.374751,30386.0,30385.0,0.09337589]
[1688184962794,0.374751,30386.0,30385.0,0.0751462]
[1688184963186,0.374751,30386.0,30385.0,0.09337589]
[1688184963386,0.374751,30386.0,30385.0,0.1477714]
[1688184963793,0.374751,30386.0,30385.0,0.0751462]
[1688184964693,0.374751,30386.0,30385.0,0.09337589]
[1688184964991,0.374751,30386.0,30385.0,0.0751462]
[1688184965188,0.374751,30386.0,30385.0,0.09337589]
[1688184965383,0.374751,30386.0,30385.0,0.0751462]
[1688184965583,0.374751,30386.0,30385.0,0.09337589]
[1688184967598,0.27268575,30386.0,30385.0,0.54441301]
[1688184967790,0.27268575,30386.0,30385.0,0.44587589]
[1688184968004,0.27268575,30386.0,30385.0,0.5441855]
[1688184968992,0.37455,30387.0,30385.0,0.5441855]
[1688184969197,0.3548,30387.0,30386.0,0.40873014]
[1688184969407,0.37455,30387.0,30386.0,0.41936738]
[1688184969895,0.37455,30387.0,30386.0,0.51767699]
[1688184970495,0.37455,30387.0,30386.0,0.4994473]
[1688184971194,0.37455,30387.0,30386.0,0.51767699]
[1688184972796,0.37455,30387.0,30386.0,0.4994473]
[1688184974698,0.37455,30387.0,30386.0,0.51767699]
[1688184974899,0.37455,30387.0,30386.0,0.48059785]
[1688184975100,0.37135,30387.0,30386.0,0.1475473]
[1688184975795,0.37135,30387.0,30386.0,0.04923769]
[1688184976307,0.73215,30387.0,30386.0,0.01063724]
[1688184976796,0.75099945,30387.0,30386.0,0.01063724]
[1688184978297,0.75099945,30387.0,30379.0,0.22373336]
[1688184978298,0.02534945,30386.0,30379.0,0.22373336]
[1688184978599,0.019757,30378.0,30377.0,0.019756]
[1688184978797,0.39360645,30378.0,30377.0,0.019756]
[1688184979693,0.39020645,30378.0,30377.0,0.019756]
[1688184979999,0.21804294,30378.0,30377.0,0.019756]
[1688184980306,0.23779994,30378.0,30377.0,0.019756]
[1688184980494,0.21895049,30378.0,30377.0,0.019756]
[1688184982507,0.23779994,30378.0,30377.0,0.019756]
[1688184982806,0.23779994,30378.0,30377.0,0.04655157]
[1688184983194,0.23779994,30378.0,30377.0,0.019756]
[1688184983394,0.21895049,30378.0,30377.0,0.019756]
[1688184984098,0.23779994,30378.0,30377.0,0.019756]
[1688184985202,0.23779994,30378.0,30376.0,0.02674814]
[1688184985395,0.37094945,30377.0,30376.0,0.02674814]
[1688184985597,0.39070645,30377.0,30375.0,0.059276]
[1688184985902,0.39070645,30377.0,30374.0,0.065864]
[1688184985903,0.37384945,30376.0,30374.0,0.065864]
[1688184986199,0.371959,30375.0,30372.0,0.3315]
[1688184986410,0.3548,30373.0,30372.0,0.3315]
[1688184986607,0.37456,30373.0,30372.0,0.351261]
[1688184987119,0.37456,30373.0,30372.0,0.37011045]
[1688184987297,0.37456,30373.0,30372.0,0.351261]
[1688184987603,0.34553331,30373.0,30372.0,0.351261]
[1688184987794,0.36438276,30373.0,30371.0,0.0265176]
[1688184988091,0.374761,30372.0,30370.0,0.00018519]
[1688184988291,0.75441045,30371.0,30370.0,0.00018519]
[1688184988702,0.75441045,30371.0,30370.0,0.01994719]
[1688184988897,0.380561,30371.0,30370.0,0.39007688]
[1688184989297,0.380561,30371.0,30370.0,0.40892633]
[1688184989493,0.3608,30371.0,30370.0,0.40892633]
[1688184989699,0.00049389,30374.0,30372.0,0.05]
[1688184989901,0.00049389,30374.0,30373.0,0.40973914]
[1688184990592,0.00049389,30374.0,30373.0,0.71513914]
[1688184991193,0.00049389,30374.0,30373.0,0.72989931]
[1688184993905,0.02025289,30374.0,30373.0,0.72989931]
[1688184995209,0.00049389,30374.0,30373.0,0.72989931]
[1688184997413,0.02025289,30374.0,30373.0,0.72989931]
[1688185002133,0.01712011,30374.0,30373.0,0.72989931]
[1688185002924,0.3516,30375.0,30373.0,0.72989931]
[1688185003122,0.3516,30375.0,30374.0,0.39207914]
[1688185003318,0.3516,30375.0,30374.0,0.42362273]
[1688185004721,0.36129385,30377.0,30374.0,0.42362273]
[1688185004918,0.36129385,30377.0,30376.0,0.355]
[1688185005121,0.36129385,30377.0,30376.0,0.37476]
[1688185005417,0.38105285,30377.0,30376.0,0.37476]
[1688185005623,0.73605285,30377.0,30376.0,0.39360945]
[1688185006013,0.7549023,30377.0,30376.0,0.37476]
[1688185006211,0.7549023,30377.0,30376.0,0.38576686]
[1688185006820,0.7549023,30377.0,30376.0,0.03076686]
[1688185007919,0.7549023,30377.0,30376.0,0.01100686]
[1688185008126,0.7549023,30377.0,30372.0,0.4025]
[1688185008127,0.7614023,30377.0,30372.0,0.422261]
[1688185008326,0.7156,30373.0,30372.0,0.422261]
[1688185008526,0.735362,30373.0,30372.0,0.422261]
[1688185008832,0.75421145,30373.0,30372.0,0.019761]
[1688185009021,1.05891145,30373.0,30372.0,0.019761]
[1688185009718,1.06541145,30373.0,30370.0,0.02678678]
[1688185009921,0.374763,30371.0,30370.0,0.04654978]
[1688185010325,0.381263,30371.0,30370.0,0.04654978]
[1688185010814,0.374763,30371.0,30370.0,0.04654978]
[1688185011206,0.374763,30371.0,30370.0,0.06539923]
[1688185012017,0.374763,30371.0,30370.0,0.04654978]
[1688185012217,0.39361245,30371.0,30370.0,0.04654978]
[1688185013320,0.374763,30371.0,30370.0,0.04654978]
[1688185014213,0.374763,30371.0,30370.0,0.06539923]
[1688185014824,0.374763,30371.0,30370.0,0.04654978]
[1688185015425,0.39361245,30371.0,30370.0,0.04654978]
[1688185016221,0.40011245,30371.0,30370.0,0.02678678]
[1688185016520,0.40011245,30371.0,30366.0,0.019765]
[1688185016521,0.0065,30370.0,30366.0,0.019765]
[1688185016720,0.713,30367.0,30366.0,0.019765]
[1688185017021,0.732765,30367.0,30366.0,0.019765]
[1688185017340,0.732765,30367.0,30354.0,0.20293703]
[1688185017341,0.3608,30360.0,30354.0,0.20293703]
[1688185017627,1.096173,30355.0,30354.0,0.19633703]
[1688185017811,0.6754509,30355.0,30354.0,0.21803735]
[1688185018012,0.6754509,30355.0,30352.0,0.05439551]
[1688185018013,1.0304509,30355.0,30352.0,0.374375]
[1688185018225,0.3548,30353.0,30352.0,0.374375]
[1688185018826,0.39342345,30353.0,30352.0,0.3546]
[1688185019233,0.39342345,30353.0,30351.0,0.3057]
[1688185019419,0.73464945,30352.0,30349.0,0.4172652]
[1688185019624,0.019775,30351.0,30349.0,0.46278376]
[1688185019923,0.2371,30352.0,30349.0,0.46938376]
[1688185020121,0.00049423,30354.0,30353.0,0.019775]
[1688185020318,0.00049423,30354.0,30353.0,0.39362445]
[1688185020717,0.00049423,30354.0,30353.0,0.44801996]
[1688185020918,0.3608,30357.0,30354.0,0.01884945]
[1688185021219,0.01977,30358.0,30356.0,0.547171]
[1688185021417,0.01977,30358.0,30357.0,0.01884945]
[1688185022218,0.38057,30358.0,30357.0,0.01884945]
[1688185024326,0.90797,30358.0,30355.0,0.02768295]
[1688185024530,1.0477,30355.0,30354.0,0.0004941]
[1688185024730,1.430573,30355.0,30354.0,0.0004941]
[1688185025624,1.430573,30355.0,30354.0,0.02094173]
[1688185025826,1.437073,30355.0,30354.0,0.0004941]
[1688185026129,0.907973,30355.0,30354.0,0.0004941]
[1688185026325,0.907973,30355.0,30354.0,0.02094074]
[1688185026526,0.380573,30355.0,30354.0,0.09510925]
[1688185026730,0.019773,30355.0,30354.0,0.66758418]
[1688185027229,0.019773,30355.0,30354.0,0.08578867]
[1688185027230,0.547173,30355.0,30354.0,0.08578867]
[1688185027731,0.547173,30355.0,30354.0,0.10401836]
[1688185027930,0.019773,30355.0,30354.0,0.63141836]
[1688185029038,0.059319,30357.0,30354.0,0.63141836]
[1688185029334,0.059319,30357.0,30355.0,0.03707914]
[1688185029534,0.059319,30357.0,30356.0,0.03768536]
[1688185029834,0.059319,30357.0,30356.0,0.05653481]
[1688185030232,0.019771,30359.0,30356.0,0.58043481]
[1688185030439,0.019771,30359.0,30358.0,0.5226]
[1688185030638,0.019771,30359.0,30358.0,0.542371]
[1688185031041,0.019771,30359.0,30358.0,0.57945014]
[1688185032037,0.049421,30362.0,30360.0,0.019769]
[1688185032238,0.049421,30362.0,30360.0,0.60466451]
[1688185032429,0.049421,30362.0,30360.0,1.00880095]
[1688185032630,0.049421,30362.0,30360.0,1.05880095]
[1688185032941,0.049421,30362.0,30360.0,1.36800095]
[1688185033129,0.019768,30363.0,30361.0,0.03707914]
[1688185033332,0.3608,30366.0,30363.0,0.019767]
[1688185033644,0.019765,30367.0,30363.0,0.019767]
[1688185033645,0.019765,30367.0,30366.0,0.019765]
[1688185033943,0.019765,30367.0,30366.0,0.545065]
[1688185034239,0.019765,30367.0,30366.0,0.58214414]
[1688185034443,0.019765,30367.0,30366.0,0.56391445]
[1688185034840,0.019765,30367.0,30366.0,0.58214414]
[1688185035033,0.019764,30368.0,30366.0,0.58214414]
[1688185035239,0.019764,30367.0,30366.0,0.019765]
[1688185035540,0.019764,30367.0,30366.0,0.543665]
[1688185035723,0.019764,30367.0,30366.0,0.63513965]
[1688185038737,0.059293,30369.0,30366.0,0.63513965]
[1688185039050,0.059293,30369.0,30368.0,0.5226]
[1688185039242,0.059293,30369.0,30368.0,0.542364]
[1688185039443,0.059293,30369.0,30368.0,0.57944314]
[1688185040127,0.059293,30369.0,30368.0,0.56121345]
[1688185040326,0.059293,30369.0,30368.0,0.57944314]
[1688185044947,0.059293,30369.0,30368.0,0.05684314]
[1688185049249,0.00049397,30370.0,30368.0,0.57944314]
[1688185049449,0.00049397,30370.0,30369.0,0.03707914]
[1688185049755,0.00049397,30370.0,30369.0,0.05684214]
[1688185050144,0.00049397,30370.0,30369.0,0.10684214]
[1688185050344,0.3608,30374.0,30370.0,0.03707914]
[1688185050552,0.420076,30377.0,30373.0,0.5238]
[1688185050745,0.019759,30375.0,30374.0,0.07415551]
[1688185051443,0.019759,30375.0,30374.0,0.11123465]
[1688185051641,0.019759,30375.0,30374.0,0.05683914]
[1688185052051,0.552159,30375.0,30374.0,0.03860945]
[1688185052259,0.5226,30374.0,30371.0,0.00049383]
[1688185052557,0.8831,30372.0,30371.0,0.00049383]
[1688185052762,0.902862,30372.0,30371.0,0.00049383]
[1688185054448,0.902862,30372.0,30366.0,0.02679366]
[1688185054449,1.49096367,30372.0,30366.0,0.02679366]
[1688185054742,0.914465,30367.0,30364.0,0.05]
[1688185054948,0.902767,30365.0,30364.0,0.05]
[1688185055354,0.902767,30365.0,30364.0,0.08861645]
[1688185056353,0.902767,30365.0,30364.0,0.11453986]
[1688185057258,0.380567,30365.0,30364.0,0.64193986]
[1688185057451,0.380567,30365.0,30364.0,0.66016955]
[1688185059856,0.380567,30365.0,30364.0,0.13276955]
[1688185060067,0.907967,30365.0,30364.0,0.1139201]
[1688185060250,0.907967,30365.0,30364.0,0.09569041]
[1688185061064,0.907967,30365.0,30364.0,0.1139201]
[1688185061463,0.907967,30365.0,30364.0,0.13276955]
[1688185062864,0.907967,30365.0,30364.0,0.11453986]
[1688185064058,0.907967,30365.0,30364.0,0.09569041]
[1688185064363,0.907967,30365.0,30364.0,0.11453986]
[1688185065366,0.907967,30365.0,30364.0,0.44403986]
[1688185065868,0.907967,30365.0,30364.0,0.46226955]
[1688185066453,0.907967,30365.0,30364.0,0.44403986]
[1688185066763,0.907967,30365.0,30364.0,0.42519041]
[1688185067252,0.907967,30365.0,30364.0,0.44403986]
[1688185068566,0.907967,30365.0,30364.0,0.46226955]
[1688185069067,0.907967,30365.0,30364.0,0.44403986]
[1688185070359,0.907967,30365.0,30364.0,0.46226955]
[1688185071259,0.907967,30365.0,30364.0,0.44403986]
[1688185071562,0.907967,30365.0,30364.0,0.46226955]
[1688185071955,0.907967,30365.0,30364.0,0.44403986]
[1688185073368,0.907967,30365.0,30364.0,0.46226955]
[1688185073571,0.907967,30365.0,30364.0,0.44403986]
[1688185073771,0.97321107,30365.0,30364.0,0.44403986]
[1688185074069,0.97321107,30365.0,30364.0,0.46226955]
[1688185074955,0.44581107,30365.0,30364.0,0.46226955]
[1688185075161,0.44581107,30365.0,30364.0,0.52763405]
[1688185075574,0.380567,30365.0,30364.0,0.52763405]
[1688185075875,0.44581107,30365.0,30364.0,0.52763405]
[1688185076468,0.44581107,30365.0,30364.0,0.50940436]
[1688185077765,0.380567,30365.0,30364.0,0.44403986]
[1688185077972,0.380567,30365.0,30364.0,0.46226955]
[1688185078181,0.380567,30365.0,30364.0,0.44403986]
[1688185078969,0.380567,30365.0,30364.0,0.46226955]
[1688185079376,0.380567,30365.0,30364.0,0.44403986]
[1688185079571,0.380567,30365.0,30364.0,0.46226955]
[1688185079875,0.380567,30365.0,30364.0,0.44403986]
[1688185080680,0.380567,30365.0,30364.0,0.51666506]
[1688185081067,0.380567,30365.0,30364.0,0.46226955]
[1688185082379,0.380567,30365.0,30364.0,0.44403986]
[1688185083079,0.380567,30365.0,30364.0,0.46226955]
[1688185084282,0.380567,30365.0,30364.0,0.52807201]
[1688185084583,0.380567,30365.0,30364.0,0.46226955]
[1688185085883,0.735767,30365.0,30364.0,0.81816955]
[1688185087586,0.44054013,30365.0,30364.0,0.91607149]
[1688185087786,0.42077313,30365.0,30364.0,0.91607149]
[1688185090279,0.24640898,30365.0,30364.0,0.82476955]
[1688185090473,0.09889219,30368.0,30365.0,0.03707914]
[1688185090474,0.03623267,30367.0,30365.0,0.03707914]
[1688185090680,0.00049399,30368.0,30366.0,0.736465]
[1688185090884,0.00049399,30368.0,30367.0,0.45189795]
[1688185091195,0.00049399,30368.0,30367.0,0.50874109]
[1688185092877,0.00049399,30368.0,30367.0,0.41004314]
[1688185093491,0.00049399,30368.0,30367.0,0.50872709]
[1688185093698,0.00049399,30368.0,30367.0,0.84422709]
[1688185093989,0.09708107,30372.0,30371.0,0.375661]
[1688185094183,0.09708107,30372.0,30371.0,0.731561]
[1688185094383,0.09708107,30372.0,30371.0,0.83441336]
[1688185094886,0.09708107,30372.0,30371.0,0.76864014]
[1688185095689,0.01976,30374.0,30371.0,0.76864014]
[1688185095887,0.01976,30374.0,30373.0,0.3559]
[1688185096085,0.13063544,30375.0,30373.0,0.37566]
[1688185096290,0.13063544,30375.0,30374.0,0.39297914]
[1688185096587,0.13063544,30375.0,30374.0,0.41273814]
[1688185096989,0.1375879,30375.0,30374.0,0.41273814]
[1688185097675,0.00744634,30375.0,30374.0,0.41273814]
[1688185099078,0.00744634,30375.0,30374.0,0.46273814]
[1688185099881,0.00568597,30375.0,30374.0,0.46273814]
[1688185100082,0.55021056,30379.0,30374.0,0.46273814]
[1688185100382,0.55021056,30379.0,30378.0,0.3559]
[1688185100687,0.55021056,30379.0,30378.0,0.39388669]
[1688185100892,0.55021056,30379.0,30378.0,0.41273614]
[1688185101081,0.55021056,30379.0,30378.0,0.74043614]
[1688185101392,0.420069,30379.0,30378.0,0.39450645]
[1688185102182,0.55102775,30379.0,30378.0,0.39450645]
[1688185102382,0.55102775,30379.0,30378.0,0.41273614]
[1688185102791,0.55102775,30379.0,30378.0,0.39450645]
[1688185103394,0.55102775,30379.0,30378.0,0.41273614]
[1688185103780,0.420069,30379.0,30378.0,0.41273614]
[1688185105190,0.3608,30379.0,30378.0,0.41273614]
[1688185106196,0.019757,30380.0,30378.0,0.41273614]
[1688185106391,0.019757,30380.0,30379.0,0.39027914]
[1688185106591,0.50572475,30381.0,30380.0,0.3559]
[1688185106792,0.55151952,30382.0,30380.0,0.731556]
[1688185106995,0.55151952,30382.0,30381.0,0.39297914]
[1688185107206,0.55151952,30382.0,30381.0,0.41273414]
[1688185107499,0.55536497,30382.0,30381.0,0.41273414]
[1688185107794,0.42440622,30382.0,30381.0,0.41273414]
[1688185107997,0.55536497,30382.0,30381.0,0.41273414]
[1688185108497,0.42440622,30382.0,30381.0,0.41273414]
[1688185110685,0.42440622,30382.0,30381.0,0.72113414]
[1688185111598,0.42440622,30382.0,30381.0,0.70290445]
[1688185112198,0.42440622,30382.0,30381.0,0.72113414]
[1688185115001,0.38489522,30382.0,30381.0,0.72113414]
[1688185116499,0.51585397,30382.0,30381.0,0.72113414]
[1688185116894,0.51585397,30382.0,30381.0,0.70290445]
[1688185117601,0.51585397,30382.0,30381.0,0.72113414]
[1688185121095,0.38489522,30382.0,30381.0,0.72113414]
[1688185125498,0.38648057,30382.0,30381.0,0.72113414]
[1688185129209,0.36672457,30382.0,30381.0,0.72113414]
[1688185131207,0.38647957,30382.0,30381.0,0.72113414]
[1688185131810,0.51743832,30382.0,30381.0,0.72113414]
[1688185132113,0.38647957,30382.0,30381.0,0.684055]
[1688185132408,0.87083832,30382.0,30381.0,0.375655]
[1688185133709,0.73987957,30382.0,30381.0,0.375655]
[1688185134016,0.73987957,30382.0,30381.0,0.39450445]
[1688185134903,0.73887957,30382.0,30381.0,0.39450445]
[1688185135405,0.74067957,30382.0,30381.0,0.019755]
[1688185135907,0.90335515,30382.0,30381.0,0.019755]
[1688185136417,0.90505515,30382.0,30381.0,0.375655]
[1688185137314,0.90505515,30382.0,30381.0,0.39450445]
[1688185139120,0.87351561,30382.0,30381.0,0.39450445]
[1688185139711,0.74237957,30382.0,30381.0,0.39450445]
[1688185140111,0.74237957,30382.0,30381.0,0.41273414]
[1688185140918,0.74237957,30382.0,30381.0,0.39450445]
[1688185144933,0.38647957,30382.0,30381.0,0.41273414]
[1688185147824,0.54915515,30382.0,30381.0,0.41273414]
[1688185148024,0.38647957,30382.0,30381.0,0.41273414]
[1688185149631,0.38647957,30382.0,30381.0,0.39450445]
[1688185150030,0.54915515,30382.0,30381.0,0.375655]
[1688185153539,0.54915515,30382.0,30381.0,0.39450445]
[1688185154041,0.38647957,30382.0,30381.0,0.39450445]
[1688185154440,0.41712207,30382.0,30381.0,0.39450445]
[1688185154942,0.41712207,30382.0,30381.0,0.375655]
[1688185155240,0.38647957,30382.0,30381.0,0.375655]
[1688185155932,0.41712217,30382.0,30381.0,0.375655]
[1688185157634,0.41712217,30382.0,30381.0,0.39450445]
[1688185161340,0.38647957,30382.0,30381.0,0.39450445]
[1688185162032,0.38647957,30382.0,30381.0,0.375655]
[1688185162428,0.38647957,30382.0,30381.0,0.39450445]
[1688185164046,0.38647957,30382.0,30381.0,0.41273414]
[1688185164241,0.38647957,30382.0,30381.0,0.39450445]
[1688185166146,0.38647957,30382.0,30381.0,0.41273414]
[1688185166444,0.38647957,30382.0,30381.0,0.39450445]
[1688185166940,0.38647957,30382.0,30381.0,0.41273414]
[1688185167148,0.38647957,30382.0,30381.0,0.39450445]
[1688185167545,0.38647957,30382.0,30381.0,0.41273414]
[1688185168447,0.38647957,30382.0,30381.0,0.39450445]
[1688185168838,0.41712234,30382.0,30381.0,0.39450445]
[1688185169147,0.41712234,30382.0,30381.0,0.375655]
[1688185171434,0.41712234,30382.0,30381.0,0.39450445]
[1688185172541,0.41712234,30382.0,30381.0,0.41273414]
[1688185172941,0.41712234,30382.0,30381.0,0.39450445]
[1688185174144,0.41712234,30382.0,30381.0,0.41273414]
[1688185174348,0.41712234,30382.0,30381.0,0.39450445]
[1688185176439,0.38647957,30382.0,30381.0,0.39450445]
[1688185177252,0.38647957,30382.0,30381.0,0.375655]
[1688185181849,0.38647957,30382.0,30381.0,0.39450445]
[1688185182452,0.38647957,30382.0,30381.0,0.41273414]
[1688185182648,0.38647957,30382.0,30381.0,0.39450445]
[1688185183151,0.38647957,30382.0,30381.0,0.41273414]
[1688185183552,0.38647957,30382.0,30381.0,0.39450445]
[1688185183946,0.4171221,30382.0,30381.0,0.39450445]
[1688185184449,0.4171221,30382.0,30381.0,0.375655]
[1688185191051,0.4171221,30382.0,30381.0,0.39388469]
[1688185191451,0.38647957,30382.0,30381.0,0.39450445]
[1688185191955,0.55075648,30382.0,30381.0,0.41273414]
[1688185196253,0.55076446,30382.0,30381.0,0.41273414]
[1688185196658,0.38647957,30382.0,30381.0,0.41273414]
[1688185197263,0.55076455,30382.0,30381.0,0.41273414]
[1688185198856,0.55076455,30382.0,30381.0,0.375655]
[1688185199965,0.55076455,30382.0,30381.0,0.39388469]
[1688185200264,0.73987957,30382.0,30381.0,0.375655]
[1688185200470,0.73987957,30382.0,30381.0,0.684055]
[1688185201257,0.73987957,30382.0,30381.0,0.6643]
[1688185201457,0.73987957,30382.0,30381.0,0.3559]
[1688185201756,0.77052324,30382.0,30379.0,0.05]
[1688185201963,0.51666581,30380.0,30379.0,0.05]
[1688185202157,0.53642281,30380.0,30379.0,0.05]
[1688185204463,0.53642281,30380.0,30378.0,0.09146149]
[1688185204464,0.372157,30380.0,30378.0,0.02568827]
[1688185204659,0.736457,30379.0,30378.0,0.02568827]
[1688185204857,0.736457,30379.0,30377.0,0.3532]
[1688185205062,0.51843973,30378.0,30376.0,0.42167322]
[1688185205260,0.375659,30377.0,30376.0,0.42167322]
[1688185205456,0.43005451,30377.0,30376.0,0.3559]
[1688185205656,0.56140042,30377.0,30376.0,0.42167322]
[1688185205857,0.43005451,30377.0,30376.0,0.3559]
[1688185206059,0.37862416,30377.0,30376.0,0.42167322]
[1688185206259,0.50997094,30377.0,30376.0,0.42167322]
[1688185206569,0.37862416,30377.0,30376.0,0.44143222]
[1688185207264,0.50996126,30377.0,30376.0,0.44143222]
[1688185207974,0.50996126,30377.0,30376.0,0.46788645]
[1688185208476,0.15406126,30377.0,30376.0,0.46788645]
[1688185209066,0.15406126,30377.0,30376.0,0.50496559]
[1688185210362,0.15406126,30377.0,30376.0,0.4867359]
[1688185210560,0.15406126,30377.0,30376.0,0.46788645]
[1688185211261,0.15406126,30377.0,30376.0,0.4867359]
[1688185211466,0.15406126,30377.0,30376.0,0.50496559]
[1688185211766,0.02272416,30377.0,30376.0,0.50496559]
[1688185212764,0.00296516,30377.0,30376.0,0.43919237]
[1688185212972,0.00296516,30377.0,30376.0,0.54445221]
[1688185213467,0.10146283,30377.0,30376.0,0.54445221]
[1688185213667,0.06766087,30377.0,30376.0,0.54445221]
[1688185213865,0.3608,30378.0,30376.0,0.44579237]
[1688185214065,0.3608,30378.0,30377.0,0.49170563]
[1688185214265,0.3608,30378.0,30377.0,0.51146463]
[1688185214475,0.23645579,30378.0,30377.0,0.51806463]
[1688185214769,0.00305579,30378.0,30377.0,0.51806463]
[1688185214978,0.1807311,30380.0,30377.0,0.51806463]
[1688185215276,0.1807311,30380.0,30379.0,0.42011776]
[1688185215577,0.1807311,30380.0,30379.0,0.43987476]
[1688185215776,0.1807311,30380.0,30379.0,0.4769539]
[1688185216969,0.1313371,30380.0,30379.0,0.5269539]
[1688185217164,0.1510951,30381.0,30379.0,0.8551539]
[1688185217371,0.1510951,30381.0,30380.0,0.39297914]
[1688185217572,0.1510951,30381.0,30380.0,0.41273614]
[1688185218484,0.1510951,30381.0,30380.0,0.76863614]
[1688185219367,0.1313371,30381.0,30380.0,0.8344539]
[1688185219971,0.1313371,30381.0,30380.0,0.76863614]
[1688185220177,0.1510931,30381.0,30380.0,0.79737476]
[1688185220378,0.1510931,30381.0,30380.0,0.731557]
[1688185220876,0.1510931,30381.0,30380.0,0.74978669]
[1688185221069,0.1510931,30381.0,30380.0,0.76863614]
[1688185221470,0.019756,30381.0,30380.0,0.76863614]
[1688185224182,0.019756,30381.0,30380.0,0.41273614]
[1688185225276,0.3608,30385.0,30380.0,0.41273614]
[1688185225277,0.19679135,30399.0,30396.0,1.05]
[1688185225476,0.19679135,30399.0,30396.0,1.466765]
[1688185225477,0.16400803,30397.0,30396.0,1.466765]
[1688185225794,0.328479,30400.0,30396.0,0.455265]
[1688185226082,0.02217048,30399.0,30396.0,0.099365]
[1688185226277,0.02217048,30399.0,30398.0,0.403663]
[1688185226473,0.17086992,30401.0,30398.0,0.759563]
[1688185226669,0.00049345,30401.0,30400.0,0.375644]
[1688185227270,0.00049345,30401.0,30400.0,0.41272314]
[1688185229078,0.02505077,30401.0,30400.0,0.41272314]
[1688185231491,0.09039414,30401.0,30400.0,0.41272314]
[1688185233284,0.02505077,30401.0,30400.0,0.41272314]
[1688185236496,0.42614337,30404.0,30400.0,0.41272314]
[1688185236497,0.3608,30404.0,30400.0,0.41272314]
[1688185236699,0.3608,30404.0,30403.0,0.3559]
[1688185236887,0.3608,30404.0,30403.0,0.375645]
[1688185237288,0.3608,30404.0,30403.0,0.41272414]
[1688185237585,0.38833208,30404.0,30403.0,0.41272414]
[1688185239996,0.38833208,30404.0,30403.0,0.39387469]
[1688185240896,0.74073208,30404.0,30403.0,0.375645]
[1688185242200,0.38833208,30404.0,30403.0,0.375645]
[1688185243395,0.38833208,30404.0,30403.0,0.39449445]
[1688185244196,0.38833208,30404.0,30403.0,0.375645]
[1688185245099,0.38833208,30404.0,30403.0,0.37564]
[1688185245597,0.02753208,30404.0,30403.0,0.37564]
[1688185246091,0.02753208,30404.0,30403.0,0.39448945]
[1688185246595,0.02753208,30404.0,30403.0,0.41271914]
[1688185247195,0.31051855,30407.0,30403.0,0.41271914]
[1688185247396,0.31051855,30407.0,30406.0,0.3559]
[1688185247593,0.31051855,30407.0,30406.0,0.375637]
[1688185248490,0.31051855,30407.0,30406.0,0.39448645]
[1688185252498,1.08161406,30407.0,30406.0,0.019737]
[1688185252999,0.72081406,30407.0,30406.0,0.019737]
[1688185253204,1.08161406,30407.0,30406.0,0.019737]
[1688185253390,1.10135106,30407.0,30406.0,0.019737]
[1688185254496,1.04695555,30407.0,30406.0,0.019737]
[1688185257803,1.04695555,30407.0,30405.0,0.019738]
[1688185258011,0.375639,30406.0,30404.0,0.019741]
[1688185258207,0.37564,30405.0,30404.0,0.019741]
[1688185259202,0.40272261,30405.0,30404.0,0.019741]
[1688185261697,0.47456598,30405.0,30402.0,0.05971834]
[1688185262007,0.47456598,30405.0,30402.0,0.00049334]
[1688185262008,0.736442,30403.0,30402.0,0.00049334]
[1688185262413,0.76240929,30403.0,30402.0,0.00049334]
[1688185262811,0.76890929,30403.0,30402.0,0.00049334]
[1688185263112,0.76890929,30403.0,30396.0,0.019746]
[1688185263301,0.374946,30397.0,30396.0,0.019746]
[1688185263499,0.374946,30397.0,30396.0,0.04552249]
[1688185263698,0.39392047,30397.0,30396.0,0.019746]
[1688185265407,0.75472047,30397.0,30396.0,0.019746]
[1688185265613,0.75472047,30397.0,30395.0,0.38171105]
[1688185265913,0.372146,30396.0,30395.0,0.38171105]
[1688185266100,0.39005797,30396.0,30395.0,0.38171105]
[1688185267014,0.39005797,30396.0,30395.0,0.3557]
[1688185267413,0.39005797,30396.0,30393.0,0.05973848]
[1688185267414,0.39655797,30396.0,30393.0,0.00049348]
[1688185267721,0.7149,30394.0,30392.0,0.02593558]
[1688185267921,0.382148,30393.0,30392.0,0.02593558]
[1688185268222,0.382148,30393.0,30388.0,0.415155]
[1688185268223,0.382148,30393.0,30388.0,0.3559]
[1688185268414,0.382148,30393.0,30388.0,0.019751]
[1688185268415,0.3559,30389.0,30388.0,0.019751]
[1688185268606,0.375651,30389.0,30388.0,0.019751]
[1688185269820,0.375651,30389.0,30388.0,0.04577813]
[1688185270015,0.375651,30389.0,30388.0,0.019751]
[1688185274110,0.38439161,30389.0,30388.0,0.019751]
[1688185274518,0.48913868,30389.0,30386.0,0.02691226]
[1688185274720,0.7167,30387.0,30385.0,0.00049361]
[1688185274926,0.44985662,30386.0,30385.0,0.00049361]
[1688185275115,0.44985662,30386.0,30385.0,0.02696489]
[1688185275317,0.44985662,30386.0,30385.0,0.00049361]
[1688185275516,0.38439267,30386.0,30385.0,0.00049361]
[1688185275719,0.05439551,30385.0,30381.0,0.3099]
[1688185275916,0.7167,30382.0,30380.0,0.019755]
[1688185276120,0.728955,30381.0,30378.0,0.019757]
[1688185276425,0.7167,30379.0,30378.0,0.019757]
[1688185276622,0.736457,30379.0,30378.0,0.019757]
[1688185276926,0.736457,30379.0,30376.0,0.38]
[1688185277132,0.3559,30377.0,30376.0,0.349758]
[1688185277311,0.375658,30377.0,30376.0,0.35592367]
[1688185277831,0.375658,30377.0,30376.0,0.02592367]
[1688185278213,0.375658,30377.0,30375.0,0.00049377]
[1688185278419,0.7149,30376.0,30375.0,0.00049377]
[1688185278724,0.734659,30376.0,30375.0,0.00049377]
[1688185278913,0.734659,30376.0,30375.0,0.02749632]
[1688185279317,0.734659,30376.0,30375.0,0.00049377]
[1688185280129,0.734659,30376.0,30375.0,0.02025377]